bitfinex/quotes_SOLUSD_20220128
["timestamp","ask_amount","ask_price","bid_price","bid_amount"]
[1643352475178,107.2,91.939,91.858,48.07412512]
[1643352475774,107.2,91.939,91.82,15.64]
[1643352475775,16.3406,91.93,91.82,15.64]
[1643352475980,31.9806,91.93,91.793,46.3126]
[1643352476174,152.9163587,91.929,91.793,46.3126]
[1643352476373,54.4921,91.91,91.761,24.0363]
[1643352476574,47.9347,91.909,91.786,2.21271662]
[1643352476776,47.9347,91.909,91.787,36.71315023]
[1643352477379,47.9347,91.909,91.788,23.6092]
[1643352477577,47.9347,91.909,91.797,6.0]
[1643352477778,47.9347,91.909,91.798,0.25]
[1643352477985,47.9347,91.909,91.798,6.0]
[1643352478179,47.9347,91.909,91.788,23.6092]
[1643352478379,16.3477,91.9,91.789,0.25]
[1643352479079,2.95669142,91.899,91.789,0.25]
[1643352479282,2.95669142,91.899,91.762,9.08984794]
[1643352479283,15.64,91.89,91.762,9.08984794]
[1643352479481,107.2,91.879,91.753,17.60690117]
[1643352479680,107.2,91.879,91.732,45.9326]
[1643352479681,211.12,91.87,91.732,45.9326]
[1643352480279,230.06210062,91.87,91.733,44.48946112]
[1643352480485,2.95669142,91.869,91.733,44.48946112]
[1643352480881,16.3563,91.85,91.733,44.48946112]
[1643352481081,15.64,91.84,91.733,44.48946112]
[1643352481883,15.64,91.84,91.734,47.8002]
[1643352482082,31.9966,91.84,91.734,47.8002]
[1643352482285,2.95669142,91.839,91.711,23.6331]
[1643352482582,22.7358,91.838,91.704,111.9]
[1643352482781,41.60567839,91.838,91.704,111.9]
[1643352482983,21.82656981,91.837,91.66,3.00170432]
[1643352483184,35.19595746,91.837,91.694,37.7294434]
[1643352483383,16.3675,91.8,91.695,47.7444]
[1643352483585,15.64,91.81,91.695,49.96512174]
[1643352483783,15.64,91.83,91.696,2.22072174]
[1643352483985,11.35407027,91.86,91.706,6.0]
[1643352484188,15.64,91.86,91.708,46.68840807]
[1643352484487,16.3525,91.86,91.711,107.2]
[1643352484685,47.2844,91.873,91.711,107.2]
[1643352484686,47.2844,91.873,91.718,6.0]
[1643352484886,15.64,91.88,91.722,39.04133746]
[1643352485086,15.64,91.89,91.732,6.0]
[1643352485284,15.64,91.89,91.733,47.9799]
[1643352485488,15.64,91.89,91.751,48.72288761]
[1643352485687,15.64,91.89,91.752,24.6884]
[1643352486085,15.64,91.89,91.753,2.22072174]
[1643352486286,17.61098122,91.889,91.753,21.13770428]
[1643352486486,16.3513,91.87,91.753,18.91698254]
[1643352486688,31.9913,91.87,91.752,24.6884]
[1643352487186,139.1913,91.87,91.752,24.6884]
[1643352487387,50.25629142,91.869,91.752,24.6884]
[1643352487886,47.2996,91.869,91.752,24.6884]
[1643352488096,2.95669142,91.868,91.752,24.6884]
[1643352488491,107.2,91.859,91.751,48.72288761]
[1643352488890,2.95669142,91.858,91.751,48.72288761]
[1643352489088,24.2564,91.857,91.751,48.72288761]
[1643352489289,41.86738122,91.857,91.7,15.64]
[1643352489492,20.56767264,91.856,91.68,15.64]
[1643352489693,20.56767264,91.856,91.694,2.20839332]
[1643352489892,2.95669142,91.855,91.694,2.20839332]
[1643352490292,16.3569,91.85,91.695,84.84869526]
[1643352490492,15.64,91.84,91.695,84.84869526]
[1643352490695,15.64,91.84,91.696,19.16698254]
[1643352490892,48.399,91.839,91.697,107.2]
[1643352491094,48.399,91.839,91.71,15.64]
[1643352491292,107.2,91.838,91.712,38.57978334]
[1643352491692,107.2,91.838,91.713,107.2]
[1643352492596,107.2,91.838,91.714,0.25]
[1643352492991,107.2,91.838,91.715,18.91698254]
[1643352493196,48.399,91.839,91.72,15.64]
[1643352493393,48.399,91.839,91.721,0.25]
[1643352493893,48.399,91.839,91.721,19.16698254]
[1643352494093,48.399,91.839,91.722,107.2]
[1643352494292,48.399,91.839,91.723,0.25]
[1643352494493,48.399,91.839,91.723,22.7649]
[1643352494695,48.399,91.839,91.724,107.2]
[1643352494893,48.399,91.839,91.725,0.25]
[1643352495096,48.399,91.839,91.727,107.2]
[1643352495293,48.399,91.839,91.728,0.25]
[1643352495702,48.399,91.839,91.727,107.2]
[1643352495894,24.5394,91.859,91.741,42.85730176]
[1643352496096,24.5394,91.859,91.742,22.6933]
[1643352496496,24.5394,91.859,91.752,6.0]
[1643352496695,22.8007,91.909,91.76,13.1]
[1643352496898,22.8007,91.909,91.762,46.44458288]
[1643352497096,40.41168122,91.909,91.78,16.3406]
[1643352497299,40.41168122,91.909,91.782,39.09618416]
[1643352497498,40.41168122,91.909,91.783,107.2]
[1643352497695,39.97754469,91.909,91.783,109.65818533]
[1643352497896,22.36656347,91.909,91.794,107.2]
[1643352498199,22.36656347,91.909,91.796,39.97874499]
[1643352498397,22.36656347,91.909,91.797,0.25]
[1643352498697,22.36656347,91.909,91.797,107.45]
[1643352498900,22.36656347,91.909,91.8,13.1]
[1643352499399,22.36656347,91.909,91.801,107.45]
[1643352501303,39.97754469,91.909,91.8,13.1]
[1643352501701,39.97754469,91.909,91.801,0.25]
[1643352502100,23.2955,91.908,91.801,0.25]
[1643352502399,17.61098122,91.907,91.801,107.45]
[1643352502999,17.61098122,91.907,91.801,0.25]
[1643352503798,17.61098122,91.907,91.8,13.1]
[1643352505000,24.6505,91.928,91.801,2.20818533]
[1643352505205,23.1383,91.927,91.801,2.45818533]
[1643352505403,23.1383,91.927,91.801,109.65818533]
[1643352505801,40.74928122,91.927,91.8,13.1]
[1643352506007,2.95669142,91.926,91.8,13.1]
[1643352506401,17.61098122,91.925,91.8,13.1]
[1643352506804,2.95669142,91.924,91.8,13.1]
[1643352507104,16.3447,91.92,91.8,13.1]
[1643352507300,16.3447,91.92,91.796,147.17874499]
[1643352507504,20.56767264,91.919,91.796,39.97874499]
[1643352507700,35.86498456,91.919,91.796,39.97874499]
[1643352507902,20.56767264,91.918,91.796,39.97874499]
[1643352508103,107.2,91.917,91.796,39.97874499]
[1643352508302,16.3466,91.91,91.796,39.97874499]
[1643352508701,22.7536,91.909,91.796,39.97874499]
[1643352509102,40.36458122,91.909,91.796,39.97874499]
[1643352509302,40.36458122,91.909,91.797,46.0961]
[1643352509704,16.3488,91.89,91.797,46.0961]
[1643352509905,40.36458122,91.909,91.797,46.0961]
[1643352510727,40.36458122,91.909,91.8,13.1]
[1643352510932,22.7536,91.909,91.801,107.2]
[1643352511232,22.7536,91.909,91.801,109.65818533]
[1643352511435,17.61098122,91.929,91.802,2.20818533]
[1643352511929,17.61098122,91.929,91.803,0.25]
[1643352512431,17.61098122,91.949,91.811,107.2]
[1643352512634,17.61098122,91.949,91.82,13.1]
[1643352512831,17.61098122,91.949,91.821,0.25]
[1643352513029,17.61098122,91.949,91.821,2.45818533]
[1643352513232,24.6123,91.956,91.821,2.45818533]
[1643352513433,24.6123,91.956,91.822,2.20818533]
[1643352513839,24.6123,91.956,91.83,16.3316]
[1643352514031,24.6123,91.956,91.833,44.51902009]
[1643352514230,24.6123,91.956,91.84,13.1]
[1643352514432,17.61098122,91.955,91.84,13.1]
[1643352514634,20.56767264,91.955,91.84,13.1]
[1643352514832,16.3388,91.95,91.833,44.51902009]
[1643352515232,38.40089171,91.949,91.833,44.51902009]
[1643352515634,46.60393543,91.948,91.833,44.51902009]
[1643352515933,16.3404,91.94,91.833,44.51902009]
[1643352516336,49.56062685,91.939,91.833,44.51902009]
[1643352516735,31.94964563,91.938,91.833,44.51902009]
[1643352516936,49.56062685,91.938,91.833,44.51902009]
[1643352517136,14.11642656,91.937,91.833,44.51902009]
[1643352517335,16.3429,91.92,91.833,44.51902009]
[1643352518840,107.2,91.935,91.833,44.51902009]
[1643352519238,17.61098122,91.935,91.833,44.51902009]
[1643352520640,17.83321907,91.934,91.833,44.51902009]
[1643352520839,107.2,91.933,91.833,44.51902009]
[1643352521039,124.81098122,91.933,91.833,44.51902009]
[1643352521241,107.2,91.933,91.833,44.51902009]
[1643352521441,17.61098122,91.932,91.833,44.51902009]
[1643352523844,17.61098122,91.932,91.834,2.20818533]
[1643352524240,17.61098122,91.932,91.834,107.2]
[1643352525942,16.61098122,91.932,91.835,24.4594]
[1643352526142,13.1,91.95,91.835,24.4594]
[1643352526343,13.1,91.95,91.836,107.2]
[1643352526547,13.1,91.95,91.837,22.8937]
[1643352526745,17.83321907,91.954,91.837,22.8937]
[1643352526943,27.52909107,91.956,91.837,22.8937]
[1643352527144,16.3377,91.95,91.837,22.8937]
[1643352527345,24.6123,91.956,91.837,22.8937]
[1643352527346,24.6123,91.956,91.84,13.1]
[1643352527844,24.6123,91.956,91.841,107.45]
[1643352528345,24.6123,91.956,91.841,0.25]
[1643352528944,24.6123,91.956,91.84,13.1]
[1643352529147,16.3385,91.95,91.84,13.1]
[1643352529346,33.2872,91.939,91.84,13.1]
[1643352529748,17.53875899,91.938,91.84,13.1]
[1643352530550,16.3412,91.93,91.837,22.8937]
[1643352530846,46.97995899,91.93,91.833,44.51902009]
[1643352531446,18.92482907,91.929,91.833,44.51902009]
[1643352531846,17.53875899,91.928,91.833,44.51902009]
[1643352532249,24.5624,91.927,91.833,44.51902009]
[1643352532647,17.53875899,91.926,91.833,44.51902009]
[1643352533449,16.3434,91.92,91.833,44.51902009]
[1643352534650,33.88215899,91.92,91.833,44.51902009]
[1643352534850,141.08215899,91.92,91.833,44.51902009]
[1643352535052,160.00698806,91.92,91.833,44.51902009]
[1643352535253,52.80698806,91.92,91.833,44.51902009]
[1643352536855,16.3444,91.9,91.833,44.51902009]
[1643352537254,17.53875899,91.899,91.833,44.51902009]
[1643352538655,17.53875899,91.899,91.8,13.1]
[1643352538854,16.3462,91.89,91.776,3.00170432]
[1643352539055,5.66866169,91.827,91.719,4.32e-06]
[1643352539255,5.66866169,91.827,91.675,24.028]
[1643352539256,13.1,91.82,91.676,47.495]
[1643352539459,13.1,91.82,91.677,3.02675206]
[1643352539655,13.1,91.82,91.678,45.3843286]
[1643352539858,21.83878375,91.819,91.679,107.2]
[1643352540056,49.2916,91.818,91.679,107.2]
[1643352540257,52.24829142,91.818,91.679,107.2]
[1643352540460,16.3653,91.8,91.679,107.2]
[1643352541260,24.69,91.799,91.679,107.2]
[1643352541561,24.69,91.799,91.68,13.1]
[1643352541963,24.69,91.799,91.681,107.2]
[1643352542360,24.69,91.799,91.682,0.25]
[1643352542559,24.19321369,91.799,91.682,0.25]
[1643352542958,16.3636,91.79,91.682,0.25]
[1643352545091,2.95669142,91.809,91.682,18.69352711]
[1643352545288,11.36687224,91.799,91.683,107.2]
[1643352545489,18.88209233,91.814,91.683,107.2]
[1643352545689,18.88209233,91.808,91.684,0.25]
[1643352547490,18.88209233,91.808,91.685,20.65171244]
[1643352547691,18.88209233,91.808,91.7,13.1]
[1643352547988,18.88209233,91.808,91.703,107.2]
[1643352548390,18.88209233,91.808,91.704,2.20818533]
[1643352549394,18.88209233,91.827,91.704,2.20818533]
[1643352549597,16.3554,91.85,91.714,6.0]
[1643352549796,16.3554,91.85,91.72,13.1]
[1643352550092,16.3554,91.85,91.721,107.2]
[1643352550295,16.3554,91.85,91.721,109.65818533]
[1643352550493,16.3554,91.85,91.722,2.20818533]
[1643352550892,16.3554,91.85,91.723,0.25]
[1643352551094,16.3554,91.85,91.732,6.0]
[1643352551295,16.3554,91.85,91.74,13.1]
[1643352551496,16.3554,91.85,91.741,107.2]
[1643352551796,16.3554,91.85,91.741,109.65818533]
[1643352551993,16.3554,91.85,91.742,2.20818533]
[1643352552394,16.3554,91.85,91.743,0.25]
[1643352552695,16.3554,91.85,91.744,2.20818533]
[1643352554100,17.36542566,91.849,91.743,0.25]
[1643352554295,17.36542566,91.849,91.751,34.87853003]
[1643352555297,17.36542566,91.849,91.752,2.20818533]
[1643352557700,17.36542566,91.849,91.754,107.2]
[1643352558100,17.36542566,91.849,91.755,2.20818533]
[1643352560403,17.36542566,91.849,91.756,0.25]
[1643352560804,17.36542566,91.849,91.757,2.20818533]
[1643352561004,63.08382566,91.868,91.76,15.71]
[1643352561304,63.08382566,91.868,91.761,107.45]
[1643352561503,63.08382566,91.868,91.761,109.65818533]
[1643352561704,63.08382566,91.868,91.762,2.20818533]
[1643352561902,63.08382566,91.868,91.763,0.25]
[1643352562405,63.08382566,91.868,91.765,44.6036735]
[1643352562640,63.08382566,91.868,91.77,15.71]
[1643352563003,63.08382566,91.868,91.771,107.2]
[1643352563803,63.08382566,91.868,91.772,2.20818533]
[1643352564303,63.08382566,91.868,91.773,0.25]
[1643352564304,45.7184,91.868,91.773,0.25]
[1643352564505,17.36542566,91.887,91.773,0.25]
[1643352564703,17.36542566,91.904,91.774,2.20818533]
[1643352564907,17.36542566,91.904,91.781,6.0]
[1643352565105,17.36542566,91.904,91.79,15.71]
[1643352565304,17.36542566,91.904,91.791,107.45]
[1643352565505,17.36542566,91.904,91.792,23.7123]
[1643352565704,17.36542566,91.904,91.793,107.2]
[1643352565905,17.36542566,91.904,91.793,107.45]
[1643352566104,17.36542566,91.904,91.794,24.0714]
[1643352566504,17.36542566,91.904,91.794,26.27958533]
[1643352566804,17.36542566,91.904,91.795,2.20818533]
[1643352567204,17.36542566,91.904,91.795,109.40818533]
[1643352567606,17.36542566,91.904,91.797,48.21715178]
[1643352567803,17.36542566,91.904,91.798,107.2]
[1643352568007,17.36542566,91.904,91.798,109.40818533]
[1643352568405,24.4265,91.903,91.799,2.20818533]
[1643352568804,17.36542566,91.902,91.799,2.20818533]
[1643352570508,16.3439,91.9,91.799,2.20818533]
[1643352570908,24.4265,91.903,91.799,2.20818533]
[1643352571109,24.4265,91.903,91.812,45.43382072]
[1643352571310,24.4265,91.903,91.813,24.2583]
[1643352571508,24.4265,91.903,91.812,45.43382072]
[1643352571509,16.3439,91.9,91.812,45.43382072]
[1643352571709,107.2,91.899,91.812,45.43382072]
[1643352571911,108.65291572,91.899,91.812,45.43382072]
[1643352572109,1.45291572,91.898,91.812,45.43382072]
[1643352572308,1.45291572,91.901,91.812,45.43382072]
[1643352572509,1.45291572,91.902,91.812,45.43382072]
[1643352572911,16.57098122,91.901,91.812,45.43382072]
[1643352573310,16.3465,91.88,91.812,45.43382072]
[1643352575310,16.3465,91.88,91.79,15.71]
[1643352575513,1.45291572,91.876,91.76,15.71]
[1643352575713,16.3563,91.85,91.73,17.21807413]
[1643352575910,107.2,91.849,91.73,17.21807413]
[1643352576113,110.15669142,91.849,91.73,15.71]
[1643352576409,2.95669142,91.848,91.731,48.77796225]
[1643352576611,1.45291572,91.846,91.731,48.77796225]
[1643352576813,108.65291572,91.847,91.731,48.77796225]
[1643352577010,2.95669142,91.845,91.731,48.77796225]
[1643352577316,16.3583,91.82,91.731,48.77796225]
[1643352577911,16.3583,91.82,91.732,2.21630402]
[1643352579213,16.3583,91.82,91.732,109.41630402]
[1643352579613,16.3583,91.82,91.733,2.21630402]
[1643352580413,16.3583,91.82,91.734,0.25]
[1643352580915,16.3583,91.82,91.735,2.21052415]
[1643352581516,16.3536,91.84,91.736,0.25]
[1643352581714,16.3536,91.84,91.751,38.13839992]
[1643352581913,48.0815,91.848,91.752,107.2]
[1643352582115,48.0815,91.848,91.752,109.66052415]
[1643352582516,48.0815,91.848,91.754,107.2]
[1643352582818,48.0815,91.848,91.753,2.21052415]
[1643352583117,48.0815,91.848,91.755,2.21052415]
[1643352584015,48.0815,91.848,91.751,38.13839992]
[1643352584916,16.355,91.84,91.751,38.13839992]
[1643352585316,2.95669142,91.839,91.751,38.13839992]
[1643352586118,48.0815,91.848,91.751,38.13839992]
[1643352586317,16.3565,91.83,91.752,2.21052415]
[1643352588217,16.3565,91.83,91.751,38.13839992]
[1643352593354,32.6326,91.83,91.751,38.13839992]
[1643352593955,2.95669142,91.836,91.751,38.13839992]
[1643352594154,2.95669142,91.836,91.752,50.22272415]
[1643352594354,48.0815,91.848,91.752,50.22272415]
[1643352594556,48.0815,91.848,91.753,2.21052415]
[1643352594760,48.0815,91.848,91.753,109.41052415]
[1643352595155,48.0815,91.848,91.754,2.21042948]
[1643352595556,48.0815,91.848,91.752,48.0122]
[1643352595757,48.0815,91.848,91.751,38.13839992]
[1643352596960,48.0815,91.848,91.753,107.2]
[1643352597463,48.0815,91.848,91.754,2.21042948]
[1643352598664,16.3519,91.85,91.754,2.21042948]
[1643352599059,32.92288122,91.85,91.754,2.21042948]
[1643352599261,2.95669142,91.849,91.753,107.2]
[1643352599463,23.0826,91.848,91.753,107.2]
[1643352599861,2.95669142,91.847,91.753,107.2]
[1643352600762,19.52767264,91.847,91.753,107.2]
[1643352601065,16.57098122,91.847,91.754,2.21042948]
[1643352602462,16.57098122,91.847,91.753,107.2]
[1643352602662,23.0826,91.848,91.753,107.2]
[1643352602864,23.0826,91.848,91.754,2.46042948]
[1643352603069,1.45291572,91.862,91.754,2.46042948]
[1643352603263,1.45291572,91.862,91.765,45.16920325]
[1643352603463,1.45291572,91.872,91.78,15.71]
[1643352603664,23.5433,91.879,91.782,107.2]
[1643352603665,1.45291572,91.877,91.782,107.2]
[1643352603866,1.45291572,91.877,91.783,0.25]
[1643352604065,1.45291572,91.884,91.783,45.5247]
[1643352604268,1.45291572,91.889,91.783,47.73512948]
[1643352604463,1.45291572,91.889,91.784,2.21042948]
[1643352605266,1.45291572,91.89,91.784,2.21042948]
[1643352605468,1.45291572,91.891,91.784,2.21042948]
[1643352605669,1.45291572,91.887,91.784,109.41042948]
[1643352606068,1.45291572,91.887,91.785,2.21042948]
[1643352606267,1.45291572,91.891,91.784,107.2]
[1643352606475,1.45291572,91.892,91.784,107.2]
[1643352606668,1.45291572,91.892,91.785,2.21042948]
[1643352606870,1.45291572,91.895,91.785,2.46042948]
[1643352607068,1.45291572,91.896,91.785,2.46042948]
[1643352607472,8.45208547,91.9,91.786,70.0]
[1643352607672,0.00669142,91.914,91.787,70.0]
[1643352607872,4.44096598,91.974,91.831,0.30605483]
[1643352608070,4.44096598,91.974,91.84,15.71]
[1643352608280,92.51630102,92.0,91.87,196.38]
[1643352608470,92.51630102,92.0,91.88,15.71]
[1643352608671,16.3272,92.0,91.881,38.23386773]
[1643352609075,13.83272479,92.003,91.881,40.44429721]
[1643352609270,16.3315,91.97,91.881,38.23386773]
[1643352609477,13.83272479,92.003,91.881,38.23386773]
[1643352609877,17.01068588,92.01,91.891,107.2]
[1643352610077,4.44096598,92.036,91.9,15.71]
[1643352610272,2.90211779,92.03,91.91,196.38]
[1643352610479,2.90211779,92.03,91.92,15.71]
[1643352610672,2.90211779,92.03,91.92,24.35]
[1643352610875,16.3237,92.02,91.92,24.35]
[1643352611077,30.40069567,92.019,91.921,45.19552772]
[1643352611272,40.58897618,92.019,91.921,45.19552772]
[1643352611474,111.9,92.009,91.921,45.19552772]
[1643352612374,5.07094543,91.989,91.921,45.19552772]
[1643352613674,111.9,92.009,91.921,45.19552772]
[1643352614479,70.0,92.009,91.91,6.55390573]
[1643352614775,0.30919519,91.971,91.87,196.38]
[1643352614976,15.71,91.97,91.768,47.3382]
[1643352615179,114.9319,91.969,91.768,47.3382]
[1643352615382,196.38,91.96,91.769,46.09234855]
[1643352615577,111.9,91.928,91.769,46.09234855]
[1643352615779,15.71,91.92,91.769,46.09234855]
[1643352615980,16.35,91.86,91.769,46.09234855]
[1643352616977,16.35,91.86,91.77,22.25370255]
[1643352617781,16.3468,91.88,91.77,22.25370255]
[1643352617980,16.3468,91.88,91.77,43.6629217]
[1643352618281,15.71,91.9,91.771,109.42839757]
[1643352618580,15.71,91.9,91.772,19.86366359]
[1643352618780,2.95669142,91.899,91.773,0.25]
[1643352618988,15.71,91.9,91.773,21.63053589]
[1643352619183,15.71,91.9,91.774,22.08626715]
[1643352619382,2.95669142,91.899,91.775,107.2]
[1643352619580,2.95669142,91.899,91.79,15.71]
[1643352619781,16.3431,91.9,91.791,39.40317358]
[1643352619982,16.3431,91.9,91.791,39.15317358]
[1643352620181,16.3431,91.9,91.792,0.25]
[1643352620384,16.3431,91.9,91.792,2.47260356]
[1643352620583,16.3431,91.9,91.792,109.67260356]
[1643352620784,16.3431,91.9,91.793,2.22260356]
[1643352620982,16.3431,91.9,91.794,107.2]
[1643352621183,16.3431,91.9,91.794,107.45]
[1643352621387,16.3431,91.9,91.795,2.22260356]
[1643352621585,54.4823,91.92,91.81,13.09]
[1643352621784,16.3396,91.93,91.812,43.40776942]
[1643352621985,16.3396,91.93,91.813,107.2]
[1643352622385,2.95669142,91.929,91.813,107.2]
[1643352622985,16.3423,91.91,91.813,107.2]
[1643352623986,2.95669142,91.909,91.813,107.2]
[1643352624986,16.3423,91.91,91.813,109.42254495]
[1643352625593,16.3423,91.91,91.814,0.25]
[1643352625992,16.3423,91.91,91.814,2.47254495]
[1643352630310,16.3423,91.91,91.814,2.22254495]
[1643352630510,16.3423,91.91,91.812,43.40776942]
[1643352630511,16.3441,91.9,91.812,43.40776942]
[1643352631108,2.95669142,91.899,91.812,43.40776942]
[1643352631908,16.3441,91.9,91.812,43.40776942]
[1643352632113,16.3459,91.89,91.812,43.40776942]
[1643352633910,16.3414,91.92,91.812,43.40776942]
[1643352634511,16.3414,91.92,91.813,2.22254495]
[1643352634911,87.21313155,91.949,91.814,0.25]
[1643352635112,87.21313155,91.949,91.814,23.9584]
[1643352635315,87.21313155,91.949,91.815,2.22254495]
[1643352635513,11.36473155,91.949,91.815,109.42254495]
[1643352635713,16.3361,91.95,91.816,0.25]
[1643352635914,16.3361,91.95,91.83,13.09]
[1643352636114,16.3361,91.95,91.832,107.2]
[1643352636315,16.3361,91.95,91.833,0.25]
[1643352636514,111.9,91.967,91.833,45.51041093]
[1643352636713,111.9,91.967,91.834,109.42254495]
[1643352637115,111.9,91.967,91.835,2.47254495]
[1643352637516,111.9,91.967,91.836,2.22254495]
[1643352637720,111.9,91.967,91.85,13.09]
[1643352637916,111.9,91.967,91.851,107.2]
[1643352638317,111.9,91.967,91.851,109.42254495]
[1643352638518,111.9,91.967,91.852,40.11998524]
[1643352638917,111.9,91.967,91.853,109.42254495]
[1643352639117,15.74262235,91.966,91.853,109.42254495]
[1643352639318,15.74262235,91.966,91.853,107.2]
[1643352639719,15.74262235,91.966,91.854,2.22254495]
[1643352641324,16.3317,91.97,91.854,2.22254495]
[1643352641526,2.95669142,91.965,91.854,2.22254495]
[1643352642322,18.69931377,91.965,91.852,37.89744029]
[1643352642526,30.06404532,91.965,91.852,37.89744029]
[1643352642722,5.87332774,91.964,91.852,37.89744029]
[1643352642923,13.09,91.95,91.852,37.89744029]
[1643352643126,120.29,91.95,91.852,37.89744029]
[1643352643323,2.95669142,91.949,91.852,37.89744029]
[1643352644825,2.90308871,91.947,91.817,23.7831]
[1643352645029,2.90308871,91.947,91.78,13.09]
[1643352645226,2.90308871,91.937,91.78,13.09]
[1643352645427,13.09,91.93,91.79,6.0]
[1643352645627,2.09,91.915,91.79,6.0]
[1643352645826,16.343,91.9,91.791,48.37873865]
[1643352646129,16.343,91.9,91.801,6.0]
[1643352646525,2.95669142,91.899,91.801,6.0]
[1643352646926,2.95669142,91.899,91.802,107.2]
[1643352647129,2.95669142,91.899,91.801,6.0]
[1643352647727,29.4297,91.92,91.802,2.22254495]
[1643352647930,16.3397,91.92,91.802,49.63574495]
[1643352648128,16.3397,91.92,91.802,62.90574495]
[1643352648330,16.3397,91.92,91.803,2.22254495]
[1643352648730,16.3397,91.92,91.804,0.25]
[1643352649128,16.3397,91.92,91.805,2.22254495]
[1643352649328,16.3397,91.92,91.813,153.21243234]
[1643352649728,16.3397,91.92,91.814,0.25]
[1643352649932,16.3397,91.92,91.814,2.47254495]
[1643352650930,16.3397,91.92,91.814,0.25]
[1643352652132,16.3397,91.92,91.814,2.47254495]
[1643352652433,16.3397,91.92,91.814,0.25]
[1643352653034,16.3397,91.92,91.814,107.45]
[1643352653236,16.3397,91.92,91.814,107.2]
[1643352653534,16.3455,91.89,91.813,46.01243234]
[1643352653934,2.95669142,91.889,91.813,46.01243234]
[1643352655438,16.3487,91.87,91.813,46.01243234]
[1643352656437,2.95669142,91.869,91.813,46.01243234]
[1643352658039,2.95669142,91.869,91.769,47.4933]
[1643352658241,16.351,91.86,91.769,47.4933]
[1643352659041,16.351,91.86,91.77,35.26064279]
[1643352661543,16.351,91.86,91.771,107.2]
[1643352661743,29.4367,91.88,91.771,109.42254495]
[1643352661942,13.09,91.88,91.772,2.47254495]
[1643352662343,13.09,91.88,91.773,2.22254495]
[1643352662847,13.09,91.88,91.774,0.25]
[1643352663844,13.09,91.88,91.772,0.25]
[1643352664847,16.3456,91.89,91.772,0.25]
[1643352665849,16.3456,91.89,91.771,0.25]
[1643352666252,16.349,91.87,91.771,0.25]
[1643352667449,15.74262235,91.889,91.771,0.25]
[1643352667671,15.74262235,91.889,91.771,107.45]
[1643352670473,16.3447,91.89,91.771,107.45]
[1643352671073,16.3447,91.89,91.781,107.2]
[1643352671372,16.3447,91.89,91.782,25.0669]
[1643352673274,16.3447,91.89,91.783,107.2]
[1643352673473,29.4347,91.89,91.784,46.81834653]
[1643352673872,29.4347,91.89,91.785,107.2]
[1643352674273,107.2,91.889,91.785,107.2]
[1643352674472,123.5477,91.88,91.785,107.2]
[1643352676474,16.3477,91.88,91.785,107.2]
[1643352677477,16.343,91.9,91.785,107.2]
[1643352677677,29.433,91.9,91.785,107.2]
[1643352680082,136.633,91.9,91.785,107.2]
[1643352680280,16.3464,91.88,91.785,107.2]
[1643352681282,16.3464,91.88,91.784,46.81834653]
[1643352681483,16.3511,91.86,91.757,2.22254413]
[1643352681682,16.3511,91.86,91.74,13.09]
[1643352681883,2.95669142,91.859,91.72,13.09]
[1643352682383,2.95669142,91.859,91.72,32.24213832]
[1643352682683,2.95669142,91.859,91.721,144.86923218]
[1643352682884,49.94009142,91.859,91.721,144.86923218]
[1643352683283,16.3537,91.84,91.722,0.25]
[1643352686682,16.3537,91.84,91.731,107.2]
[1643352686884,16.3537,91.84,91.732,24.1202]
[1643352687082,16.3537,91.84,91.733,107.2]
[1643352687283,16.3537,91.84,91.734,0.25]
[1643352689085,46.9834,91.859,91.734,0.25]
[1643352690287,46.9834,91.859,91.736,107.2]
[1643352690587,46.9834,91.859,91.752,107.2]
[1643352690789,46.9834,91.859,91.754,107.2]
[1643352691390,16.3503,91.86,91.754,107.2]